[Event "EYTCC U18 Open 2019"]
[Site "Pardubice"]
[Date "2019.07.12"]
[Round "2.12"]
[White "Mica, Marek"]
[Black "Stoyanov, Viktor"]
[Result "1/2-1/2"]
[ECO "D37"]
[WhiteElo "2222"]
[BlackElo "2198"]
[Annotator "NA"]
[PlyCount "107"]
[EventDate "2019.07.11"]
[EventType "swiss"]
[EventCountry "CZE"]
[SourceTitle "playchess.com"]
[Source "ChessBase"]
[SourceQuality "1"]
[WhiteTeam "Czech Republic"]
[BlackTeam "England"]
[WhiteTeamCountry "CZE"]
[BlackTeamCountry "ENG"]
[TimeControl "40/5400+30:1800+30"]

1. d4 {[%emt 0:00:00]} d5 {[%emt 0:00:00]} 2. c4 {[%emt 0:00:37]} e6 {[%emt 0:00:00]} 3. Nf3 {[%emt 0:00:30]} Nf6 {[%emt 0:00:06]} 4. Nc3 {[%emt 0:01:02]} dxc4 {[%emt 0:00:08]} 5. e3 {[%emt 0:00:55]} a6 {[%emt 0:00:16]} 6. Bxc4 {[%emt 0:02:55]} b5 {[%emt 0:00:33]} 7. Be2 {[%emt 0:03:48]} Bb7 {[%emt 0:00:32]} 8. O-O {[%emt 0:01:09]} c5 {[%emt 0:00:25]} 9. b3 {[%emt 0:08:33]} Nbd7 {[%emt 0:02:05]} 10. Bb2 {[%emt 0:01:11]} Be7 {[%emt 0:00:30]} 11. Rc1 {[%emt 0:01:28]} O-O {[%emt 0:00:43]} 12. Qc2 {[%emt 0:02:11]} Rc8 {[%emt 0:00:56]} 13. Qb1 {[%emt 0:01:16]} cxd4 {[%emt 0:01:26]} 14. Nxd4 {[%emt 0:00:35]} Qb6 {[%emt 0:00:35]} 15. Rfd1 {[%emt 0:01:06]} Rfd8 {[%emt 0:00:20]} 16. Bf3 {[%emt 0:03:38]} Nc5 {[%emt 0:05:40]} 17. Bxb7 {[%emt 0:17:04]} Qxb7 {[%emt 0:00:11]} 18. Nf3 {[%emt 0:00:34]} b4 {[%emt 0:07:07]} 19. Ne2 {[%emt 0:01:01]} a5 {[%emt 0:01:24]} 20. Ne5 {[%emt 0:01:31]} a4 {[%emt 0:02:54]} 21. Rxd8+ {[%emt 0:01:32]} Bxd8 {[%emt 0:03:39]} 22. Bd4 {[%emt 0:01:28]} Be7 {[%emt 0:01:06]} 23. bxa4 {[%emt 0:10:18]} Nxa4 {[%emt 0:00:09]} 24. a3 {[%emt 0:01:10]} Rxc1+ {[%emt 0:01:53]} 25. Nxc1 {[%emt 0:00:31]} Nd5 {[%emt 0:04:42]} 26. axb4 {[%emt 0:03:19]} Qxb4 {[%emt 0:00:13]} 27. Qxb4 {[%emt 0:00:24]} Bxb4 {[%emt 0:00:19]} 28. e4 {[%emt 0:02:32]} Nf6 {[%emt 0:00:48]} 29. f3 {[%emt 0:01:53]} Bc5 {[%emt 0:00:11]} 30. Nb3 {[%emt 0:00:43]} Bxd4+ {[%emt 0:00:06]} 31. Nxd4 {[%emt 0:00:09]} Nc5 {[%emt 0:00:06]} 32. Ndc6 {[%emt 0:00:37]} Nfd7 {[%emt 0:00:24]} 33. Nc4 {[%emt 0:01:41]} Nb7 {[%emt 0:01:29]} 34. Kf2 {[%emt 0:00:20]} f6 {[%emt 0:00:36]} 35. e5 {[%emt 0:02:02]} fxe5 {[%emt 0:00:12]} 36. N4xe5 {[%emt 0:00:21]} Nxe5 {[%emt 0:00:07]} 37. Nxe5 {[%emt 0:00:15]} Kf8 {[%emt 0:00:08]} 38. h4 {[%emt 0:01:00]} Ke7 {[%emt 0:00:17]} 39. Ke3 {[%emt 0:00:56]} Nd6 {[%emt 0:00:16]} 40. Kf4 {[%emt 0:01:08]} Kf6 {[%emt 0:02:02]} 41. g4 {[%emt 0:31:49]} h6 {[%emt 0:30:54]} 42. h5 {[%emt 0:02:43]} Nb5 {[%emt 0:00:27]} 43. Nd7+ {[%emt 0:00:41]} Ke7 {[%emt 0:00:07]} 44. Nc5 {[%emt 0:00:41]} Nd4 {[%emt 0:00:35]} 45. Ke4 {[%emt 0:00:39]} Nc6 {[%emt 0:00:07]} 46. Nd3 {[%emt 0:00:21]} Kf6 {[%emt 0:00:14]} 47. Nc5 {[%emt 0:01:05]} Ke7 {[%emt 0:01:47]} 48. Nb3 {[%emt 0:00:56]} Kf6 {[%emt 0:00:27]} 49. Nd4 {[%emt 0:01:06]} Ne7 {[%emt 0:00:40]} 50. f4 {[%emt 0:02:41]} g5 {[%emt 0:00:42]} 51. hxg6 {[%emt 0:02:10]} Nxg6 {[%emt 0:00:06]} 52. g5+ {[%emt 0:02:22]} hxg5 {[%emt 0:00:06]} 53. fxg5+ {[%emt 0:00:05]} Kxg5 {[%emt 0:00:06]} 54. Nxe6+ {[%emt 0:00:06]} 1/2-1/2

[Event "EYTCC U18 Open 2019"]
[Site "Pardubice"]
[Date "2019.07.12"]
[Round "2.13"]
[White "Gavrilescu, David"]
[Black "Parkhov, Yair"]
[Result "1/2-1/2"]
[ECO "B90"]
[WhiteElo "2473"]
[BlackElo "2354"]
[Annotator "ChessBase"]
[PlyCount "75"]
[EventDate "2019.07.11"]
[EventType "swiss"]
[EventCountry "CZE"]
[SourceTitle "playchess.com"]
[Source "ChessBase"]
[SourceQuality "1"]
[WhiteTeam "Romania"]
[BlackTeam "Israel"]
[WhiteTeamCountry "ROU"]
[BlackTeamCountry "ISR"]
[TimeControl "40/5400+30:1800+30"]

1. e4 {[%emt 0:00:00]} c5 {[%emt 0:00:00]} 2. Nf3 {[%emt 0:00:28]} d6 {[%emt 0:00:00]} 3. d4 {[%emt 0:00:59]} cxd4 {[%emt 0:00:00]} 4. Nxd4 {[%emt 0:00:07]} Nf6 {[%emt 0:00:00]} 5. Nc3 {[%emt 0:00:32]} a6 {[%emt 0:00:00]} 6. Bd3 {[%emt 0:01:12]} e5 {[%emt 0:04:12]} 7. Nde2 {[%emt 0:00:41]} Be7 {[%emt 0:00:23]} 8. O-O {[%emt 0:00:51]} O-O {[%emt 0:00:06]} 9. Ng3 {[%emt 0:00:32]} Be6 {[%emt 0:07:28]} 10. Nd5 {[%emt 0:01:42]} Nbd7 {[%emt 0:16:22]} 11. c4 {[%emt 0:02:00]} Rc8 {[%emt 0:05:02]} 12. Be3 {[%emt 0:04:03]} Nc5 {[%emt 0:06:21]} 13. Bc2 {[%emt 0:02:53]} b5 {[%emt 0:04:41]} 14. b4 {[%emt 0:07:57]} Ncd7 {[%emt 0:00:59]} 15. cxb5 {[%emt 0:00:41]} axb5 {[%emt 0:00:25]} 16. a4 {[%emt 0:04:35]} bxa4 {[%emt 0:09:47]} 17. Bxa4 {[%emt 0:03:50]} Rc4 {[%emt 0:09:25]} 18. Bxd7 {[%emt 0:15:57]} Nxd5 {[%emt 0:07:12]} 19. Bxe6 {[%emt 0:07:20]} Nxe3 {[%emt 0:01:39]} 20. Bxf7+ {[%emt 0:13:57]} Rxf7 {[%emt 0:01:41]} 21. fxe3 {[%emt 0:00:08]} Rxf1+ {[%emt 0:00:42]} 22. Kxf1 {[%emt 0:01:52]} Rxb4 {[%emt 0:02:36]} 23. Qd5+ {[%emt 0:00:20]} Kh8 {[%emt 0:00:00]} 24. Nf5 {[%emt 0:04:58]} Bf8 {[%emt 0:03:09]} 25. Qf7 {[%emt 0:12:00]} Rb8 {[%emt 0:05:17]} 26. h4 {[%emt 0:05:00]} Qc8 {[%emt 0:04:34]} 27. Kg1 {[%emt 0:05:18]} Rb7 {[%emt 0:01:29]} 28. Qd5 {[%emt 0:00:40]} Qb8 {[%emt 0:00:33]} 29. h5 {[%emt 0:01:12]} g6 {[%emt 0:08:03]} 30. hxg6 {[%emt 0:01:15]} hxg6 {[%emt 0:00:09]} 31. Nh4 {[%emt 0:00:48]} Rb1+ {[%emt 0:00:10]} 32. Rxb1 {[%emt 0:00:36]} Qxb1+ {[%emt 0:00:08]} 33. Kh2 {[%emt 0:00:49]} Kg7 {[%emt 0:00:07]} 34. Qc6 {[%emt 0:01:04]} Qb3 {[%emt 0:01:18]} 35. Qd7+ {[%emt 0:00:32]} Qf7 {[%emt 0:00:08]} 36. Qg4 {[%emt 0:00:11]} Be7 {[%emt 0:02:16]} 37. Nf5+ {[%emt 0:00:13]} Kf8 {[%emt 0:00:07]} 38. Nxe7 {[%emt 0:01:06]} 1/2-1/2

[Event "EYTCC U18 Open 2019"]
[Site "Pardubice"]
[Date "2019.07.12"]
[Round "2.14"]
[White "Zlatin, Alexander"]
[Black "Stoleriu, George"]
[Result "1/2-1/2"]
[ECO "C02"]
[WhiteElo "2270"]
[BlackElo "2360"]
[Annotator "ChessBase"]
[PlyCount "63"]
[EventDate "2019.07.11"]
[EventType "swiss"]
[EventCountry "CZE"]
[SourceTitle "playchess.com"]
[Source "ChessBase"]
[SourceQuality "1"]
[WhiteTeam "Israel"]
[BlackTeam "Romania"]
[WhiteTeamCountry "ISR"]
[BlackTeamCountry "ROU"]
[TimeControl "40/5400+30:1800+30"]

1. e4 {[%emt 0:00:00]} e6 {[%emt 0:00:00]} 2. d4 {[%emt 0:00:00]} d5 {[%emt 0:00:00]} 3. e5 {[%emt 0:00:00]} c5 {[%emt 0:00:00]} 4. c3 {[%emt 0:00:00]} Nc6 {[%emt 0:00:01]} 5. Nf3 {[%emt 0:00:00]} Bd7 {[%emt 0:00:55]} 6. Be2 {[%emt 0:00:05]} Nge7 {[%emt 0:03:23]} 7. Na3 {[%emt 0:00:13]} Nf5 {[%emt 0:01:35]} 8. Nc2 {[%emt 0:00:08]} cxd4 {[%emt 0:01:21]} 9. cxd4 {[%emt 0:00:06]} Nb4 {[%emt 0:00:10]} 10. Nxb4 {[%emt 0:09:20]} Bxb4+ {[%emt 0:00:06]} 11. Bd2 {[%emt 0:00:32]} Qa5 {[%emt 0:06:57]} 12. a3 {[%emt 0:05:50]} Bxd2+ {[%emt 0:00:05]} 13. Qxd2 {[%emt 0:00:03]} Qxd2+ {[%emt 0:00:27]} 14. Kxd2 {[%emt 0:00:04]} Rc8 {[%emt 0:04:32]} 15. Rac1 {[%emt 0:00:46]} O-O {[%emt 0:02:14]} 16. Rxc8 {[%emt 0:02:19]} Rxc8 {[%emt 0:00:13]} 17. Rc1 {[%emt 0:00:04]} Rxc1 {[%emt 0:00:08]} 18. Kxc1 {[%emt 0:00:05]} h6 {[%emt 0:02:24]} 19. Bd3 {[%emt 0:00:21]} Ne7 {[%emt 0:00:09]} 20. Kd2 {[%emt 0:00:32]} Nc6 {[%emt 0:00:33]} 21. Kc3 {[%emt 0:00:21]} Kf8 {[%emt 0:03:47]} 22. b4 {[%emt 0:00:29]} Ke7 {[%emt 0:00:10]} 23. Nd2 {[%emt 0:01:16]} Kd8 {[%emt 0:05:03]} 24. f4 {[%emt 0:01:10]} Ne7 {[%emt 0:01:07]} 25. b5 {[%emt 0:02:39]} Kc7 {[%emt 0:03:02]} 26. a4 {[%emt 0:00:46]} b6 {[%emt 0:00:10]} 27. Nf1 {[%emt 0:00:42]} Kd8 {[%emt 0:01:30]} 28. Ne3 {[%emt 0:00:38]} h5 {[%emt 0:04:34]} 29. g4 {[%emt 0:02:30]} hxg4 {[%emt 0:00:55]} 30. Nxg4 {[%emt 0:00:04]} Ng8 {[%emt 0:05:00]} 31. Bh7 {[%emt 0:03:04]} Nh6 {[%emt 0:03:18]} 32. Nxh6 {[%emt 0:01:02]} 1/2-1/2

[Event "EYTCC U18 Open 2019"]
[Site "Pardubice"]
[Date "2019.07.12"]
[Round "2.15"]
[White "Ileana, George"]
[Black "Rozen, Eytan"]
[Result "1-0"]
[ECO "B18"]
[WhiteElo "2344"]
[BlackElo "2260"]
[Annotator "NA"]
[PlyCount "171"]
[EventDate "2019.07.11"]
[EventType "swiss"]
[EventCountry "CZE"]
[SourceTitle "playchess.com"]
[Source "ChessBase"]
[SourceQuality "1"]
[WhiteTeam "Romania"]
[BlackTeam "Israel"]
[WhiteTeamCountry "ROU"]
[BlackTeamCountry "ISR"]
[TimeControl "40/5400+30:1800+30"]

1. e4 {[%emt 0:00:12]} c6 {[%emt 0:00:00]} 2. d4 {[%emt 0:00:18]} d5 {[%emt 0:00:00]} 3. Nc3 {[%emt 0:00:16]} dxe4 {[%emt 0:00:00]} 4. Nxe4 {[%emt 0:00:06]} Bf5 {[%emt 0:00:05]} 5. Ng3 {[%emt 0:00:25]} Bg6 {[%emt 0:00:06]} 6. N1e2 {[%emt 0:01:18]} Nd7 {[%emt 0:00:14]} 7. Nf4 {[%emt 0:06:24]} e5 {[%emt 0:00:20]} 8. dxe5 {[%emt 0:03:30]} Nxe5 {[%emt 0:00:17]} 9. Qxd8+ {[%emt 0:02:40]} Rxd8 {[%emt 0:00:14]} 10. Nxg6 {[%emt 0:00:13]} hxg6 {[%emt 0:00:31]} 11. Be3 {[%emt 0:04:48]} b6 {[%emt 0:00:26]} 12. h3 {[%emt 0:04:55]} Nf6 {[%emt 0:03:22]} 13. f4 {[%emt 0:05:12]} Ned7 {[%emt 0:02:27]} 14. O-O-O {[%emt 0:06:52]} Bc5 {[%emt 0:11:09]} 15. Bxc5 {[%emt 0:15:59]} Nxc5 {[%emt 0:00:02]} 16. Rxd8+ {[%emt 0:00:13]} Kxd8 {[%emt 0:00:12]} 17. Bc4 {[%emt 0:00:11]} Rf8 {[%emt 0:11:38]} 18. Rd1+ {[%emt 0:02:32]} Kc7 {[%emt 0:01:08]} 19. Re1 {[%emt 0:01:15]} Kd7 {[%emt 0:01:10]} 20. Rd1+ {[%emt 0:02:01]} Kc7 {[%emt 0:01:31]} 21. Re1 {[%emt 0:02:39]} Kd7 {[%emt 0:00:32]} 22. a3 {[%emt 0:02:11]} Nb7 {[%emt 0:11:59]} 23. Kd2 {[%emt 0:11:39]} Nd6 {[%emt 0:00:26]} 24. Bd3 {[%emt 0:00:05]} Nd5 {[%emt 0:02:24]} 25. Rf1 {[%emt 0:00:24]} Re8 {[%emt 0:02:04]} 26. Rf3 {[%emt 0:00:10]} f5 {[%emt 0:02:34]} 27. c4 {[%emt 0:04:30]} Nf6 {[%emt 0:04:23]} 28. b3 {[%emt 0:01:47]} a5 {[%emt 0:01:49]} 29. Re3 {[%emt 0:01:02]} Rxe3 {[%emt 0:03:19]} 30. Kxe3 {[%emt 0:00:05]} c5 {[%emt 0:00:09]} 31. a4 {[%emt 0:00:13]} Ke6 {[%emt 0:01:20]} 32. Bc2 {[%emt 0:01:41]} Nf7 {[%emt 0:01:33]} 33. Ne2 {[%emt 0:00:27]} Nd6 {[%emt 0:07:12]} 34. Ng1 {[%emt 0:00:33]} Nf7 {[%emt 0:02:09]} 35. Nf3 {[%emt 0:00:45]} Nh5 {[%emt 0:02:03]} 36. Bb1 {[%emt 0:02:27]} Ng3 {[%emt 0:02:43]} 37. Kf2 {[%emt 0:04:48]} Nh1+ {[%emt 0:03:33]} 38. Kg1 {[%emt 0:00:07]} Ng3 {[%emt 0:00:02]} 39. Kf2 {[%emt 0:00:06]} Nh1+ {[%emt 0:00:21]} 40. Ke3 {[%emt 0:00:13]} Ng3 {[%emt 0:00:15]} 41. Nh4 {[%emt 0:33:21]} Kf6 {[%emt 0:30:58]} 42. Kf3 {[%emt 0:00:16]} Nf1 {[%emt 0:03:01]} 43. Ke2 {[%emt 0:01:30]} Ng3+ {[%emt 0:00:06]} 44. Kf2 {[%emt 0:00:25]} Ne4+ {[%emt 0:16:26]} 45. Bxe4 {[%emt 0:02:02]} fxe4 {[%emt 0:00:02]} 46. g4 {[%emt 0:01:24]} g5 {[%emt 0:02:47]} 47. Ng2 {[%emt 0:00:24]} Nd8 {[%emt 0:02:13]} 48. Ke3 {[%emt 0:03:12]} gxf4+ {[%emt 0:01:33]} 49. Nxf4 {[%emt 0:02:52]} Ke5 {[%emt 0:00:06]} 50. Ng6+ {[%emt 0:02:31]} Kf6 {[%emt 0:00:19]} 51. Nf8 {[%emt 0:01:16]} Ke7 {[%emt 0:00:12]} 52. Nh7 {[%emt 0:00:12]} Ne6 {[%emt 0:00:52]} 53. Kxe4 {[%emt 0:00:30]} Nd4 {[%emt 0:00:21]} 54. Ng5 {[%emt 0:00:00]} Nxb3 {[%emt 0:00:00]} 55. Kd5 {[%emt 0:00:00]} Nd4 {[%emt 0:00:00]} 56. Ne4 {[%emt 0:00:00]} Kd7 {[%emt 0:00:00]} 57. Ke5 {[%emt 0:00:00]} Nc6+ {[%emt 0:00:00]} 58. Kf4 {[%emt 0:00:00]} Ke6 {[%emt 0:00:00]} 59. Ng5+ {[%emt 0:00:00]} Kf6 {[%emt 0:00:00]} 60. Nf3 {[%emt 0:00:00]} Ke6 {[%emt 0:00:00]} 61. h4 {[%emt 0:00:00]} Nb4 {[%emt 0:00:00]} 62. Ke4 {[%emt 0:00:00]} Na2 {[%emt 0:00:00]} 63. Kd3 {[%emt 0:00:00]} Nc1+ {[%emt 0:00:00]} 64. Kd2 {[%emt 0:00:00]} Na2 {[%emt 0:00:00]} 65. h5 {[%emt 0:00:00]} Nb4 {[%emt 0:00:00]} 66. Ke3 {[%emt 0:00:00]} Na2 {[%emt 0:00:00]} 67. Ng5+ {[%emt 0:00:00]} Ke5 {[%emt 0:00:00]} 68. Nf3+ {[%emt 0:00:00]} Ke6 {[%emt 0:00:00]} 69. Kd3 {[%emt 0:00:00]} Nb4+ {[%emt 0:00:00]} 70. Kc3 {[%emt 0:00:00]} Nc6 {[%emt 0:00:00]} 71. Kd3 {[%emt 0:02:36]} Nb4+ {[%emt 0:00:00]} 72. Ke4 {[%emt 0:00:05]} Na2 {[%emt 0:00:00]} 73. Kf4 {[%emt 0:00:53]} Nc3 {[%emt 0:00:33]} 74. Kg5 {[%emt 0:00:07]} Kf7 {[%emt 0:01:55]} 75. Ne5+ {[%emt 0:01:04]} Ke6 {[%emt 0:01:14]} 76. Nc6 {[%emt 0:01:20]} Kf7 {[%emt 0:03:21]} 77. Nd8+ {[%emt 0:00:23]} Kg8 {[%emt 0:00:19]} 78. Kg6 {[%emt 0:00:30]} Ne4 {[%emt 0:01:26]} 79. g5 {[%emt 0:01:31]} b5 {[%emt 0:02:21]} 80. axb5 {[%emt 0:00:37]} a4 {[%emt 0:00:41]} 81. b6 {[%emt 0:00:03]} Nd6 {[%emt 0:00:26]} 82. h6 {[%emt 0:00:21]} gxh6 {[%emt 0:01:45]} 83. gxh6 {[%emt 0:00:04]} a3 {[%emt 0:00:07]} 84. h7+ {[%emt 0:00:06]} Kh8 {[%emt 0:00:01]} 85. b7 {[%emt 0:00:05]} a2 {[%emt 0:01:09]} 86. Nf7+ {[%emt 0:00:13]} 1-0

[Event "EYTCC U18 Open 2019"]
[Site "Pardubice"]
[Date "2019.07.12"]
[Round "2.16"]
[White "Gleizer, Adar"]
[Black "Ognean, Mihnea-Ionut"]
[Result "0-1"]
[ECO "B08"]
[WhiteElo "1748"]
[BlackElo "2287"]
[Annotator "NA"]
[PlyCount "86"]
[EventDate "2019.07.11"]
[EventType "swiss"]
[EventCountry "CZE"]
[SourceTitle "playchess.com"]
[Source "ChessBase"]
[SourceQuality "1"]
[WhiteTeam "Israel"]
[BlackTeam "Romania"]
[WhiteTeamCountry "ISR"]
[BlackTeamCountry "ROU"]
[TimeControl "40/5400+30:1800+30"]

1. e4 {[%emt 0:00:00]} d6 {[%emt 0:00:00]} 2. d4 {[%emt 0:00:11]} Nf6 {[%emt 0:00:00]} 3. Nc3 {[%emt 0:00:13]} g6 {[%emt 0:00:06]} 4. Nf3 {[%emt 0:01:43]} Bg7 {[%emt 0:00:07]} 5. h3 {[%emt 0:00:33]} O-O {[%emt 0:00:15]} 6. Be2 {[%emt 0:00:37]} c6 {[%emt 0:00:20]} 7. a4 {[%emt 0:00:20]} Qc7 {[%emt 0:00:28]} 8. Be3 {[%emt 0:00:38]} Nbd7 {[%emt 0:01:38]} 9. O-O {[%emt 0:00:36]} Re8 {[%emt 0:06:15]} 10. Nd2 {[%emt 0:01:49]} e5 {[%emt 0:01:39]} 11. dxe5 {[%emt 0:01:01]} dxe5 {[%emt 0:02:54]} 12. Nc4 {[%emt 0:00:29]} Bf8 {[%emt 0:12:59]} 13. Qe1 {[%emt 0:17:50]} Bb4 {[%emt 0:06:18]} 14. f3 {[%emt 0:01:07]} Bc5 {[%emt 0:01:09]} 15. Qf2 {[%emt 0:01:25]} Bxe3 {[%emt 0:00:06]} 16. Qxe3 {[%emt 0:00:16]} Nh5 {[%emt 0:04:25]} 17. Rfd1 {[%emt 0:07:33]} Nf8 {[%emt 0:07:21]} 18. Qc5 {[%emt 0:06:50]} Nf4 {[%emt 0:16:43]} 19. Bf1 {[%emt 0:02:37]} Qe7 {[%emt 0:03:02]} 20. Qxe7 {[%emt 0:13:09]} Rxe7 {[%emt 0:00:05]} 21. Rd8 {[%emt 0:00:40]} N4e6 {[%emt 0:01:40]} 22. Rd6 {[%emt 0:03:15]} f6 {[%emt 0:01:04]} 23. Rad1 {[%emt 0:00:46]} Kg7 {[%emt 0:00:14]} 24. Na2 {[%emt 0:05:32]} Bd7 {[%emt 0:07:56]} 25. Nb4 {[%emt 0:04:33]} Be8 {[%emt 0:00:44]} 26. Na5 {[%emt 0:01:26]} Nc5 {[%emt 0:03:22]} 27. b3 {[%emt 0:00:30]} Rd7 {[%emt 0:06:33]} 28. Bc4 {[%emt 0:03:40]} Rad8 {[%emt 0:00:23]} 29. Rxd7+ {[%emt 0:00:46]} Rxd7 {[%emt 0:00:03]} 30. Rxd7+ {[%emt 0:01:03]} Nfxd7 {[%emt 0:00:09]} 31. Na2 {[%emt 0:04:12]} Kf8 {[%emt 0:10:12]} 32. Nc3 {[%emt 0:06:15]} Nb6 {[%emt 0:00:15]} 33. b4 {[%emt 0:01:16]} Nxc4 {[%emt 0:01:56]} 34. Nxc4 {[%emt 0:00:10]} Na6 {[%emt 0:00:01]} 35. b5 {[%emt 0:03:00]} Nc5 {[%emt 0:01:27]} 36. Nd6 Bd7 {[%emt 0:00:34]} 37. Kf2 {[%emt 0:02:58]} Ke7 {[%emt 0:00:04]} 38. Nc4 {[%emt 0:01:05]} Nxa4 {[%emt 0:00:51]} 39. Nxa4 {[%emt 0:00:42]} cxb5 {[%emt 0:00:03]} 40. Nc5 {[%emt 0:00:19]} bxc4 {[%emt 0:00:08]} 41. Nxb7 {[%emt 0:30:09]} Ba4 {[%emt 0:35:10]} 42. c3 {[%emt 0:07:57]} Bc6 {[%emt 0:00:00]} 43. Nc5 {[%emt 0:00:00]} a5 {[%emt 0:00:00]} 0-1

[Event "EYTCC U18 Open 2019"]
[Site "Pardubice"]
[Date "2019.07.12"]
[Round "2.25"]
[White "Erenberg, Ariel"]
[Black "Blohberger, Felix"]
[Result "1/2-1/2"]
[ECO "A21"]
[WhiteElo "2442"]
[BlackElo "2476"]
[Annotator "ChessBase"]
[PlyCount "81"]
[EventDate "2019.07.11"]
[EventType "swiss"]
[EventCountry "CZE"]
[SourceTitle "playchess.com"]
[Source "ChessBase"]
[SourceQuality "1"]
[WhiteTeam "Israel"]
[BlackTeam "Austria"]
[WhiteTeamCountry "ISR"]
[BlackTeamCountry "AUT"]
[TimeControl "40/5400+30:1800+30"]

1. c4 {[%emt 0:00:00]} e5 {[%emt 0:01:02]} 2. Nc3 {[%emt 0:00:02]} Bb4 {[%emt 0:00:40]} 3. Nd5 {[%emt 0:00:16]} a5 {[%emt 0:01:15]} 4. Nf3 {[%emt 0:00:02]} d6 {[%emt 0:06:41]} 5. Nxb4 {[%emt 0:28:37]} axb4 {[%emt 0:00:12]} 6. g3 {[%emt 0:03:08]} c5 {[%emt 0:09:39]} 7. Bg2 {[%emt 0:02:15]} Nc6 {[%emt 0:02:09]} 8. O-O {[%emt 0:02:03]} Nge7 {[%emt 0:08:02]} 9. d3 {[%emt 0:04:54]} O-O {[%emt 0:02:53]} 10. h3 {[%emt 0:07:08]} h6 {[%emt 0:13:49]} 11. b3 {[%emt 0:05:31]} Be6 {[%emt 0:05:10]} 12. e3 {[%emt 0:03:36]} d5 {[%emt 0:07:03]} 13. cxd5 {[%emt 0:04:37]} Bxd5 {[%emt 0:03:17]} 14. Bb2 {[%emt 0:00:23]} e4 {[%emt 0:02:53]} 15. dxe4 {[%emt 0:01:52]} Bxe4 {[%emt 0:00:06]} 16. Qc1 {[%emt 0:01:38]} b6 {[%emt 0:05:10]} 17. Rd1 {[%emt 0:01:40]} Qc8 {[%emt 0:01:52]} 18. Nd2 {[%emt 0:13:35]} Bxg2 {[%emt 0:02:34]} 19. Kxg2 {[%emt 0:00:02]} Ra6 {[%emt 0:03:39]} 20. Qc2 {[%emt 0:10:38]} Qa8 {[%emt 0:07:10]} 21. Kh2 {[%emt 0:02:34]} Rd8 {[%emt 0:01:49]} 22. Nc4 {[%emt 0:01:32]} Rxd1 {[%emt 0:05:39]} 23. Qxd1 {[%emt 0:00:01]} Qc8 {[%emt 0:05:40]} 24. e4 {[%emt 0:02:28]} Na5 {[%emt 0:01:52]} 25. Nd6 {[%emt 0:01:43]} Qe6 {[%emt 0:01:15]} 26. Ne8 Ra8 {[%emt 0:00:52]} 27. Nc7 {[%emt 0:02:09]} Qxe4 {[%emt 0:00:03]} 28. Nxa8 {[%emt 0:00:03]} Qxa8 {[%emt 0:00:07]} 29. Qg4 {[%emt 0:00:06]} Ng6 {[%emt 0:01:06]} 30. h4 {[%emt 0:01:18]} Nc6 {[%emt 0:00:17]} 31. Qe4 {[%emt 0:00:18]} Nge7 {[%emt 0:00:57]} 32. h5 {[%emt 0:00:32]} Qc8 {[%emt 0:00:30]} 33. Rd1 {[%emt 0:00:04]} Qe6 {[%emt 0:00:33]} 34. Qxe6 {[%emt 0:00:38]} fxe6 {[%emt 0:00:03]} 35. Rd7 {[%emt 0:01:11]} b5 {[%emt 0:00:36]} 36. Rb7 {[%emt 0:00:45]} c4 {[%emt 0:00:07]} 37. Rxb5 {[%emt 0:00:33]} c3 {[%emt 0:00:12]} 38. Bc1 {[%emt 0:00:29]} Nd5 {[%emt 0:00:43]} 39. Rc5 {[%emt 0:00:33]} Ne5 {[%emt 0:01:11]} 40. Be3 {[%emt 0:00:29]} Kf7 {[%emt 0:00:38]} 41. Kg1 {[%emt 0:14:04]} 1/2-1/2

[Event "EYTCC U18 Open 2019"]
[Site "Pardubice"]
[Date "2019.07.12"]
[Round "2.26"]
[White "Horvath, Dominik"]
[Black "Bronstein, Or"]
[Result "0-1"]
[ECO "D90"]
[WhiteElo "2424"]
[BlackElo "2378"]
[Annotator "NA"]
[PlyCount "64"]
[EventDate "2019.07.11"]
[EventType "swiss"]
[EventCountry "CZE"]
[SourceTitle "playchess.com"]
[Source "ChessBase"]
[SourceQuality "1"]
[WhiteTeam "Austria"]
[BlackTeam "Israel"]
[WhiteTeamCountry "AUT"]
[BlackTeamCountry "ISR"]
[TimeControl "40/5400+30:1800+30"]

1. d4 {[%emt 0:00:00]} Nf6 {[%emt 0:00:00]} 2. c4 {[%emt 0:00:00]} g6 {[%emt 0:00:00]} 3. Nc3 {[%emt 0:00:00]} d5 {[%emt 0:00:00]} 4. Nf3 {[%emt 0:00:00]} Bg7 {[%emt 0:00:00]} 5. h4 {[%emt 0:00:00]} dxc4 {[%emt 0:02:22]} 6. e4 {[%emt 0:00:13]} c5 {[%emt 0:00:05]} 7. d5 {[%emt 0:00:03]} b5 {[%emt 0:01:32]} 8. h5 {[%emt 0:00:05]} Nxh5 {[%emt 0:06:04]} 9. Nxb5 {[%emt 0:02:35]} O-O {[%emt 0:02:58]} 10. Bxc4 {[%emt 0:02:01]} Bg4 {[%emt 0:01:57]} 11. Qc2 {[%emt 0:07:28]} Na6 {[%emt 0:18:59]} 12. a3 {[%emt 0:07:39]} Nc7 {[%emt 0:05:36]} 13. Nc3 {[%emt 0:04:08]} Bxf3 {[%emt 0:08:38]} 14. gxf3 {[%emt 0:00:11]} e6 {[%emt 0:00:07]} 15. Be3 {[%emt 0:24:58]} exd5 {[%emt 0:00:31]} 16. Nxd5 {[%emt 0:07:31]} Rb8 {[%emt 0:04:32]} 17. Nc3 {[%emt 0:02:33]} Ne6 {[%emt 0:03:23]} 18. Bxe6 {[%emt 0:01:57]} fxe6 {[%emt 0:00:12]} 19. Rxh5 {[%emt 0:05:51]} gxh5 {[%emt 0:00:12]} 20. f4 {[%emt 0:00:04]} h4 {[%emt 0:12:05]} 21. e5 {[%emt 0:01:53]} h3 {[%emt 0:00:32]} 22. Ke2 {[%emt 0:06:26]} Qh4 {[%emt 0:00:32]} 23. Ne4 {[%emt 0:00:14]} h2 {[%emt 0:02:20]} 24. Rh1 {[%emt 0:00:04]} Rxf4 {[%emt 0:13:23]} 25. Bxf4 {[%emt 0:00:45]} Qxf4 {[%emt 0:00:01]} 26. Nf6+ {[%emt 0:02:33]} Kf7 {[%emt 0:00:49]} 27. Kf1 {[%emt 0:02:09]} Qxe5 {[%emt 0:03:29]} 28. Nxh7 {[%emt 0:05:29]} Rxb2 {[%emt 0:01:30]} 29. Qd3 {[%emt 0:00:02]} Qd5 {[%emt 0:02:30]} 30. Qxd5 {[%emt 0:00:36]} exd5 {[%emt 0:00:02]} 31. Rxh2 {[%emt 0:00:11]} Kg6 {[%emt 0:00:06]} 32. a4 {[%emt 0:00:59]} c4 {[%emt 0:00:19]} 0-1